bitfinex-derivatives/quotes_ETHF0:USTF0_20250708
["timestamp","ask_amount","ask_price","bid_price","bid_amount"]
[1751996076327,0.76569,2611.7,2611.6,0.76568]
[1751996077321,0.76569,2611.7,2611.6,1.43918]
[1751996078231,1.44999,2611.7,2611.6,1.43918]
[1751996078436,0.76573,2611.6,2611.5,0.76571]
[1751996078638,0.76573,2611.6,2611.5,1.43921]
[1751996078933,0.76564,2611.9,2611.8,0.76565]
[1751996079127,0.76564,2611.9,2611.8,1.43915]
[1751996079534,1.44994,2611.9,2611.8,1.43915]
[1751996079723,0.76567,2611.8,2611.7,0.76567]
[1751996079927,0.76567,2611.8,2611.7,1.43917]
[1751996080129,1.44997,2611.8,2611.7,0.6735]
[1751996080333,0.76567,2611.7,2611.6,0.76568]
[1751996080627,0.76573,2611.6,2611.5,0.76571]
[1751996080826,0.76573,2611.6,2611.5,1.43921]
[1751996081026,2.2072,2611.7,2611.6,0.7657]
[1751996081226,2.8915,2611.7,2611.6,1.4392]
[1751996081433,2.8915,2611.7,2611.6,0.6735]
[1751996081633,1.45,2611.7,2611.6,0.6735]
[1751996081933,1.45,2611.7,2611.6,1.4392]
[1751996082633,0.7657,2611.7,2611.6,2.4717]
[1751996082835,0.76564,2611.9,2611.8,0.76562]
[1751996083032,0.76564,2611.9,2611.8,1.43912]
[1751996083334,0.76564,2611.9,2611.6,1.0325]
[1751996083335,0.76567,2611.8,2611.6,1.0325]
[1751996083536,0.76565,2611.8,2611.7,0.76567]
[1751996083725,0.76565,2611.8,2611.7,1.43917]
[1751996083929,1.44995,2611.8,2611.7,1.43917]
[1751996084837,1.44995,2611.8,2611.7,2.47167]
[1751996085035,0.76563,2611.9,2611.8,0.76561]
[1751996085233,0.76563,2611.9,2611.8,1.43911]
[1751996085434,1.44993,2611.9,2611.8,2.47161]
[1751996085634,0.76563,2611.9,2611.8,1.43911]
[1751996085833,1.44993,2611.9,2611.8,1.43911]
[1751996086337,0.76567,2611.7,2611.6,0.76566]
[1751996086537,1.44997,2611.7,2611.6,1.43916]
[1751996087034,5.12164,2612.2,2611.6,1.706]
[1751996087237,0.76563,2612.0,2611.9,0.7656]
[1751996087433,0.76565,2611.9,2611.8,0.76562]
[1751996087633,1.44995,2611.9,2611.8,1.43912]
[1751996088140,0.76565,2611.9,2611.8,1.43912]
[1751996088340,1.44995,2611.9,2611.8,1.43912]
[1751996088633,0.76565,2611.9,2611.8,2.47162]
[1751996089439,0.76561,2612.1,2612.0,0.76556]
[1751996089640,1.44991,2612.1,2612.0,1.43906]
[1751996090142,0.76559,2612.0,2611.9,0.7656]
[1751996090339,0.76567,2611.9,2611.8,0.76562]
[1751996090640,1.45167,2611.9,2611.8,1.41342]
[1751996090839,0.686,2611.9,2611.5,3.2078]
[1751996091043,0.7657,2611.7,2611.6,0.76568]
[1751996091241,1.4517,2611.7,2611.6,1.41348]
[1751996091538,0.7657,2611.6,2611.5,3.2078]
[1751996091732,0.7657,2611.6,2611.2,3.2078]
[1751996091733,0.76579,2611.3,2611.2,3.2078]
[1751996092132,0.76579,2611.3,2611.2,4.62142]
[1751996092533,3.918,2611.8,2611.2,5.77015]
[1751996092739,0.76569,2611.7,2611.6,0.76567]
[1751996094546,0.76564,2611.9,2611.8,0.76563]
[1751996094843,0.76567,2611.8,2611.7,0.76566]
[1751996095241,0.76567,2611.8,2611.7,2.37936]
[1751996095437,0.76564,2612.0,2611.9,0.76559]
[1751996096140,0.76557,2612.1,2612.0,0.76556]
[1751996096336,1.45157,2612.1,2612.0,0.76556]
[1751996096542,0.76555,2612.2,2612.1,0.76556]
[1751996096845,3.97324,2612.6,2612.2,1.91383]
[1751996097040,3.43014064,2612.8,2612.2,1.91381]
[1751996097342,3.43014064,2612.8,2612.7,0.76535]
[1751996098047,4.19551064,2612.8,2612.7,0.76535]
[1751996098245,0.76534,2612.9,2612.8,0.76535]
[1751996098541,0.76538,2612.8,2612.7,0.76537]
[1751996098846,0.7654,2612.7,2612.6,0.76539]
[1751996099543,0.7654,2612.7,2612.3,1.4893]
[1751996099544,0.76543,2612.6,2612.5,0.76542]
[1751996099742,0.76543,2612.6,2612.3,1.4893]
[1751996099743,0.76547,2612.4,2612.3,2.25478]
[1751996100247,6.14489005,2612.4,2612.1,3.2078]
[1751996100545,0.76557,2612.1,2612.0,0.76556]
[1751996100741,0.76557,2612.1,2612.0,1.41336]
[1751996101042,0.76557,2612.1,2612.0,0.6478]
[1751996101251,2.24347,2612.1,2612.0,0.6478]
[1751996101844,2.24347,2612.1,2612.0,0.76559]
[1751996102044,0.76559,2612.0,2611.9,0.76559]
[1751996102343,1.45159,2612.0,2611.9,1.41339]
[1751996102648,1.45159,2612.0,2611.8,1.5717]
[1751996102649,0.76562,2611.9,2611.8,0.76565]
[1751996102849,0.76562,2611.9,2611.8,1.41345]
[1751996103053,0.76562,2611.9,2611.8,3.08123394]
[1751996103245,0.76562,2611.9,2611.8,1.41345]
[1751996103751,1.45162,2611.9,2611.8,0.6478]
[1751996103952,1.45162,2611.9,2611.8,2.3195974]
[1751996104551,1.45162,2611.9,2611.8,1.41345]
[1751996104751,0.76562,2611.9,2611.8,1.41345]
[1751996104952,1.45162,2611.9,2611.8,1.41345]
[1751996105151,0.76559,2612.1,2612.0,0.76559]
[1751996105448,0.76559,2612.0,2611.9,2.4367415]
[1751996105651,0.76559,2612.0,2611.9,1.6711415]
[1751996106051,0.76559,2612.0,2611.9,3.0845615]
[1751996106350,3.2078,2612.5,2611.9,2.3189415]
[1751996106650,5.12142,2612.5,2612.0,1.6711415]
[1751996106850,0.76553,2612.3,2612.2,0.7655]
[1751996107149,0.76556,2612.2,2612.1,0.76554]
[1751996107347,0.76556,2612.2,2612.1,1.41336]
[1751996107548,0.76552,2612.3,2612.2,0.76549]
[1751996107748,3.35627,2612.7,2612.2,1.6137]
[1751996107949,1.4515,2612.3,2612.2,1.41332]
[1751996108149,0.7655,2612.3,2612.2,1.41332]
[1751996108847,1.4515,2612.3,2612.2,1.41332]
[1751996109253,1.4515,2612.3,2612.2,2.37922]
[1751996110048,0.76546,2612.5,2612.2,1.6137]
[1751996110250,1.4428,2612.7,2612.6,0.76541]
[1751996110449,0.76541,2612.6,2612.5,0.76542]
[1751996110848,3.2078,2612.8,2612.5,0.6478]
[1751996111051,0.76541,2612.6,2612.5,1.41322]
[1751996112256,0.76547,2612.5,2612.4,0.76544]
[1751996112457,5.12124,2612.8,2612.1,1.518]
[1751996112651,0.76545,2612.6,2612.5,0.76541]
[1751996112848,0.7654,2612.7,2612.6,0.76538]
[1751996113153,0.76532,2613.0,2612.9,0.76532]
[1751996113549,7.40860821,2613.2,2613.1,0.76526]
[1751996113756,7.40860821,2613.2,2613.0,0.76526]
[1751996113757,0.76529,2613.1,2613.0,0.76526]
[1751996114757,0.76532,2613.0,2612.9,0.76529]
[1751996115156,0.76532,2613.0,2612.9,2.37899]
[1751996115457,0.76529,2613.1,2613.0,0.76526]
[1751996115858,0.76529,2613.1,2613.0,2.37896]
[1751996116558,5.34844821,2613.5,2613.0,2.37896]
[1751996116559,3.43555821,2613.5,2613.4,0.76518]
[1751996116753,3.43555821,2613.5,2613.4,1.41298]
[1751996116754,4.20070821,2613.5,2613.4,1.41298]
[1751996116955,0.76515,2613.5,2613.4,2.37888]
[1751996117848,3.43555821,2613.7,2613.6,0.76512]
[1751996118057,3.43555821,2613.7,2613.6,2.37882]
[1751996118257,0.76509,2613.7,2613.6,2.37882]
[1751996118654,0.76509,2613.7,2613.6,1.6137]
[1751996119160,1.45109,2613.7,2613.6,0.6478]
[1751996119862,0.76515,2613.5,2613.4,0.9659]
[1751996120155,0.76518,2613.4,2613.3,1.4836]
[1751996120456,1.9128,2613.6,2613.3,3.0887]
[1751996120457,0.76514,2613.6,2613.3,3.0887]
[1751996120657,0.76517,2613.5,2613.4,1.73106]
[1751996120954,0.76517,2613.5,2613.4,2.37026]
[1751996121153,0.76517,2613.5,2613.4,1.6051]
[1751996122454,0.76517,2613.5,2613.4,2.37028]
[1751996122655,3.43555821,2614.3,2613.5,1.91288]
[1751996122858,8.66669005,2614.4,2614.0,0.76498]
[1751996122859,0.76499,2614.1,2614.0,0.76498]
[1751996123060,4.84835,2614.5,2614.1,0.76496]
[1751996123061,0.76496,2614.2,2614.1,0.76496]
[1751996123260,0.76492,2614.3,2614.2,0.76493]
[1751996123560,0.76492,2614.3,2614.2,2.41003]
[1751996123754,1.91238,2614.2,2613.8,3.2078]
[1751996124061,0.76509,2613.7,2613.6,0.7651]
[1751996124360,0.76509,2613.7,2613.6,2.4102]
[1751996125562,0.76508,2613.8,2613.7,0.76506]
[1751996125762,0.76508,2613.8,2613.7,1.77096]
[1751996125966,0.76508,2613.8,2613.7,2.41016]
[1751996126355,0.76508,2613.8,2613.7,1.6451]
[1751996126762,0.76508,2613.8,2613.7,2.41019]
[1751996132868,0.76515,2613.5,2613.4,4.2137]
[1751996133069,0.76515,2613.5,2613.4,4.8529]
[1751996133568,0.76515,2613.5,2613.4,5.61806]
[1751996137278,0.76515,2613.5,2613.4,3.97296]
[1751996137466,0.76515,2613.5,2613.4,5.61806]
[1751996137667,0.76515,2613.6,2613.5,0.7651]
[1751996137878,3.82478,2614.2,2613.5,0.7651]
[1751996137879,0.7649,2614.4,2614.3,0.76488]
[1751996138073,0.76488,2614.4,2614.3,0.6392]
[1751996138274,0.76494,2614.2,2614.1,1.0059]
[1751996138474,0.76497,2614.1,2614.0,0.76498]
[1751996138681,1.39277,2614.1,2614.0,0.76498]
[1751996138882,1.39277,2614.1,2614.0,1.40418]
[1751996139068,0.76506,2613.9,2613.7,32.7268]
[1751996139274,0.76506,2613.9,2613.8,2.41014]
[1751996139470,1.39286,2613.9,2613.8,2.41014]
[1751996139677,0.76506,2613.9,2613.8,2.41014]
[1751996140072,3.2078,2614.2,2614.1,0.76497]
[1751996140277,3.2078,2614.2,2614.1,2.41007]
[1751996140584,3.2078,2614.8,2614.5,0.76483]
[1751996140779,0.76488,2614.5,2614.4,0.76486]
[1751996140979,4.7439,2614.8,2614.2,5.07155]
[1751996141178,3.2078,2614.8,2614.7,0.7648]
[1751996142277,1.4682,2615.1,2614.8,0.76475]
[1751996142278,3.43555821,2615.1,2614.8,0.76475]
[1751996142476,0.76475,2614.9,2614.8,0.76475]
[1751996142883,3.43555821,2615.1,2615.0,0.76471]
[1751996143086,6.64335821,2615.2,2615.1,0.76468]
[1751996143273,3.43555821,2615.2,2615.1,0.76468]
[1751996143674,4.20019821,2615.3,2615.2,0.76465]
[1751996143879,0.76464,2615.3,2615.2,1.77055]
[1751996144082,0.76468,2615.1,2615.0,3.2078]
[1751996144279,0.76468,2615.1,2614.9,0.76472]
[1751996144582,0.76474,2614.9,2614.8,0.76474]
[1751996144778,3.8356,2615.3,2614.8,0.6392]
[1751996144979,2.9283,2615.5,2614.8,3.847]
[1751996145185,2.9283,2615.5,2615.4,0.76459]
[1751996145384,2.86057,2615.5,2615.4,0.6392]
[1751996145590,0.76459,2615.4,2615.3,0.7646]
[1751996145782,0.6278,2615.4,2615.1,1.0059]
[1751996145978,0.76465,2615.2,2615.1,0.76467]
[1751996146179,1.39245,2615.2,2615.1,1.40387]
[1751996146385,0.76471,2615.0,2614.9,0.76472]
[1751996146584,0.76477,2614.8,2614.7,2.34698]
[1751996146786,0.76476,2614.9,2614.8,0.76475]
[1751996146986,1.39256,2614.9,2614.8,1.40395]
[1751996147584,1.39256,2614.9,2614.8,0.6392]
[1751996147786,1.39256,2614.9,2614.8,1.40397]
[1751996148284,1.39256,2614.9,2614.8,0.6392]
[1751996148787,1.39256,2614.9,2614.8,1.40397]
[1751996149990,0.76473,2615.0,2614.9,0.76474]
[1751996150291,1.43623,2615.0,2614.9,0.76474]
[1751996150490,1.43623,2615.0,2614.9,1.39854]
[1751996152191,0.76469,2615.2,2615.1,0.76467]
[1751996152387,0.76468,2615.1,2615.0,0.76469]
[1751996152583,1.43618,2615.1,2615.0,0.76469]
[1751996152890,0.76474,2614.9,2614.8,3.2078]
[1751996153086,3.29282,2614.9,2614.5,0.76484]
[1751996153291,0.76478,2614.8,2614.7,0.7648]
[1751996153686,1.43628,2614.8,2614.7,1.3986]
[1751996154592,1.43628,2614.8,2614.7,4.6064]
[1751996156695,1.43628,2614.8,2614.7,1.3986]
[1751996157192,0.6715,2614.8,2614.7,1.3986]
[1751996157391,1.43627,2614.8,2614.7,1.3986]
[1751996157594,1.43627,2614.8,2614.6,1.7687]
[1751996157595,0.7648,2614.7,2614.6,1.7687]
[1751996157791,1.4363,2614.7,2614.6,0.7648]
[1751996158095,1.4363,2614.7,2614.6,1.3986]
[1751996158284,0.7648,2614.7,2614.6,1.3986]
[1751996158484,1.4363,2614.7,2614.6,1.3986]
[1751996158884,0.7648,2614.7,2614.6,1.3986]
[1751996159082,1.4363,2614.7,2614.6,1.3986]
[1751996159689,0.7648,2614.7,2614.6,1.3986]
[1751996159892,1.4363,2614.7,2614.6,1.3986]
[1751996160292,0.7648,2614.7,2614.6,0.7648]
[1751996160495,1.4363,2614.7,2614.6,1.3986]
[1751996160691,1.4363,2614.7,2614.4,3.2078]
[1751996160692,0.76486,2614.5,2614.4,3.2078]
[1751996160892,6.22375005,2614.5,2614.4,3.2078]
[1751996161092,8.66669005,2614.5,2614.0,1.65892123]
[1751996161390,2.58355,2614.7,2613.8,2.20961565]
[1751996161391,0.76503,2613.9,2613.8,1.65892123]
[1751996161589,0.76503,2613.9,2613.8,2.29272123]
[1751996161786,0.76506,2613.8,2613.7,6.63569123]
[1751996161996,0.76506,2613.8,2613.7,6.50442123]
[1751996162399,0.76501,2614.0,2613.7,8.41714123]
[1751996162599,0.76501,2614.0,2613.9,0.765]
[1751996162799,0.76504,2613.9,2613.8,0.76504]
[1751996163194,0.76506,2613.8,2613.7,1.0039]
[1751996163389,9.29295005,2613.8,2613.7,1.0039]
[1751996163795,3.83406,2613.8,2613.7,1.6377]
[1751996163996,2.27816,2613.8,2613.7,1.0039]
[1751996164194,2.27816,2613.8,2613.7,1.6377]
[1751996164402,0.76509,2613.7,2613.6,0.76511]
[1751996164895,0.76504,2613.9,2613.8,0.76504]
[1751996165088,1.43654,2613.9,2613.8,0.76504]
[1751996165289,0.76506,2613.8,2613.7,0.76507]
[1751996165488,0.76509,2613.7,2613.6,1.3989]
[1751996165993,0.76506,2613.8,2613.7,0.76507]
[1751996166193,0.6715,2613.9,2613.8,1.39886]
[1751996166393,1.43655,2613.9,2613.8,1.39886]
[1751996167596,0.76505,2613.9,2613.8,1.39886]
[1751996167798,1.43655,2613.9,2613.8,0.6338]
[1751996167996,0.76506,2613.8,2613.7,0.76507]
[1751996168191,1.43656,2613.8,2613.7,0.76507]
[1751996168394,1.43656,2613.8,2613.7,1.39887]
[1751996168590,0.76502,2614.0,2613.9,0.76501]
[1751996168795,0.76502,2614.0,2613.9,1.39881]
[1751996169498,0.76499,2614.1,2614.0,0.76498]
[1751996169697,0.76499,2614.1,2614.0,1.39878]
[1751996169994,4.7242,2614.2,2614.1,0.76497]
[1751996170200,3.2078,2614.2,2614.1,2.40267]
[1751996170395,3.2078,2614.6,2614.5,0.76486]
[1751996170693,3.2078,2614.6,2614.5,2.40256]
[1751996171397,0.76478,2614.8,2614.7,0.7648]
[1751996171594,4.732,2615.0,2614.9,0.76474]
[1751996171894,6.16821,2615.0,2614.9,1.39854]
[1751996172095,6.16821,2615.0,2614.9,0.76474]
[1751996172496,6.16821,2615.0,2614.9,1.39854]
[1751996172900,5.4035,2615.0,2614.4,1.464]
[1751996173195,0.76477,2614.8,2614.7,0.76478]
[1751996173395,0.76484,2614.6,2614.5,0.76484]
[1751996173595,1.43634,2614.6,2614.5,1.39864]
[1751996174498,1.4103,2614.7,2614.6,0.76483]
[1751996174699,6.22364005,2614.9,2614.8,0.76477]
[1751996174994,6.13039005,2614.9,2614.6,1.0039]
[1751996175201,6.89515005,2614.9,2614.8,0.76477]
[1751996175396,3.2078,2615.0,2614.9,0.76474]
[1751996175595,3.97251,2615.0,2614.9,1.39854]
[1751996175805,0.76475,2614.9,2614.8,0.76475]
[1751996176101,0.76477,2614.8,2614.7,0.76479]
[1751996176301,1.43627,2614.8,2614.7,0.76479]
[1751996176595,2.1913,2614.8,2614.7,1.39859]
[1751996177501,0.6715,2614.8,2614.7,2.40249]
[1751996177702,0.76473,2615.0,2614.9,0.76474]
[1751996177903,1.43623,2615.0,2614.9,1.39854]
[1751996178297,0.76474,2614.9,2614.8,0.76475]
[1751996178498,1.43624,2614.9,2614.8,1.39855]
[1751996179208,1.43624,2614.9,2614.4,1.4043]
[1751996179209,0.76481,2614.7,2614.6,0.76479]
[1751996179399,0.6715,2614.7,2614.6,1.39863]
[1751996179602,0.76479,2614.8,2614.7,0.7648]
[1751996179799,1.43629,2614.8,2614.7,1.3986]
[1751996180901,1.43629,2614.8,2614.7,0.7648]
[1751996181096,0.76483,2614.6,2614.5,0.76484]
[1751996181296,0.76484,2614.6,2614.5,1.40904]
[1751996181497,1.41764,2614.6,2614.5,0.76484]
[1751996181697,1.41764,2614.6,2614.5,1.40904]
[1751996181898,0.76491,2614.3,2614.2,0.76492]
[1751996182198,0.76487,2614.5,2614.4,0.76488]
[1751996182403,1.41767,2614.5,2614.4,0.6442]
[1751996182704,0.76491,2614.3,2614.2,1.76883]
[1751996182902,1.41771,2614.3,2614.2,2.41303]
[1751996183100,0.76494,2614.2,2614.1,0.76496]
[1751996183408,0.6528,2614.2,2614.1,0.6442]
[1751996183607,1.41774,2614.2,2614.1,0.6442]
[1751996184007,0.76509,2613.7,2613.6,1.4607]
[1751996184209,1.41789,2613.7,2613.6,1.4607]
[1751996184410,1.41789,2613.7,2613.6,2.87002]
[1751996184613,8.66669005,2613.8,2613.7,0.76509]
[1751996184614,3.2078,2613.8,2613.7,0.76509]
[1751996184909,4.62566,2613.8,2613.7,1.40929]
[1751996185712,4.62566,2613.8,2613.7,0.6442]
[1751996186712,4.62566,2613.8,2613.7,1.40929]
[1751996187013,4.62566,2613.8,2613.7,0.6442]
[1751996187810,3.2078,2614.2,2613.7,1.6712]
[1751996188111,3.2078,2614.2,2613.8,1.91266]
[1751996188311,3.97275,2614.2,2614.1,0.76497]
[1751996188517,4.62555,2614.2,2614.1,0.76497]
[1751996188714,3.8606,2614.2,2614.1,0.76497]
[1751996188907,3.97274,2614.2,2614.1,0.76497]
[1751996189110,3.97274,2614.2,2613.7,1.027]
[1751996189111,0.76506,2613.8,2613.7,1.027]
[1751996189716,2.19186,2613.8,2613.7,1.027]
[1751996190117,0.76521,2613.3,2613.2,2.25642]
[1751996190417,0.76526,2613.1,2613.0,4.2348]
[1751996190616,0.76526,2613.1,2613.0,4.879]
[1751996190818,0.76523,2613.3,2613.2,0.76523]
[1751996191017,0.76524,2613.2,2613.1,0.76523]
[1751996191517,0.76524,2613.2,2613.1,1.40943]
[1751996191719,1.41804,2613.2,2613.1,0.6442]
[1751996191913,0.76524,2613.2,2613.1,2.30695335]
[1751996192409,0.76524,2613.2,2613.1,3.07221335]
[1751996192916,2.9698,2613.5,2613.2,0.76524]
[1751996192917,0.76522,2613.3,2613.2,0.76524]
[1751996193119,0.76524,2613.2,2613.1,0.76525]
[1751996193320,1.41804,2613.2,2613.1,1.40945]
[1751996193512,0.76521,2613.3,2613.2,0.76521]
[1751996193716,3.82492,2614.1,2613.2,0.76521]
[1751996193717,0.76519,2613.4,2613.3,0.76518]
[1751996193918,0.76519,2613.4,2613.3,3.91158]
[1751996194413,0.76517,2613.5,2613.3,3.1464]
[1751996194721,0.76517,2613.5,2613.4,1.79216]
[1751996194916,0.76517,2613.5,2613.4,2.43636]
[1751996195520,1.41797,2613.5,2613.4,0.6442]
[1751996196217,1.41797,2613.5,2613.4,1.40938]
[1751996196721,0.76517,2613.5,2613.4,1.40938]
[1751996197018,1.41797,2613.5,2613.4,1.40938]
[1751996198324,3.97295,2613.6,2613.5,0.76515]
[1751996198519,4.62575,2613.6,2613.5,0.76515]
[1751996198718,4.62575,2613.6,2613.5,1.40935]
[1751996199119,4.62575,2613.6,2613.5,0.6442]
[1751996199321,4.62575,2613.6,2613.5,1.40935]
[1751996199723,1.41795,2613.6,2613.5,1.40935]
[1751996200226,0.76515,2613.5,2613.4,0.76515]
[1751996200622,0.76515,2613.5,2613.4,1.40935]
[1751996201221,0.76515,2613.6,2613.5,0.76513]
[1751996201523,0.76508,2613.8,2613.7,0.76506]
[1751996201826,0.76505,2613.9,2613.8,0.76502]
[1751996202124,0.765,2614.1,2614.0,0.76499]
[1751996202315,3.97277,2614.2,2614.1,0.76497]
[1751996202515,1.91244,2614.1,2613.5,28.6762]
[1751996202720,0.76512,2613.6,2613.5,30.199]
[1751996203425,0.76512,2613.6,2613.5,30.96415]
[1751996203623,0.76512,2613.6,2613.5,1.027]
[1751996204123,2.22622,2613.6,2613.5,1.027]
[1751996205018,0.76526,2613.1,2613.0,3.2078]
[1751996205222,0.76526,2613.1,2613.0,3.852]
[1751996205420,0.76526,2613.1,2613.0,4.61729]
[1751996205622,0.76526,2613.1,2613.0,1.40949]
[1751996206127,0.76523,2613.3,2613.2,0.76524]
[1751996206425,0.76521,2613.3,2613.2,0.76522]
[1751996206726,0.76521,2613.3,2613.2,2.43642]
[1751996207122,0.76514,2613.6,2613.2,1.6712]
[1751996207329,0.76512,2613.6,2613.5,0.76515]
[1751996207522,0.76512,2613.6,2613.5,1.40935]
[1751996207719,0.76512,2613.6,2613.5,2.43635]
[1751996207924,3.2078,2614.0,2613.5,7.13009005]
[1751996208228,3.97281,2614.0,2613.9,0.76503]
[1751996208529,0.76505,2613.9,2613.8,0.76504]
[1751996208730,0.76505,2613.9,2613.8,1.40924]
[1751996208917,0.76505,2613.9,2613.8,3.97324]
[1751996210129,0.76505,2613.9,2613.8,2.30204]
[1751996210324,0.76505,2613.9,2613.8,3.97324]
[1751996210526,0.76502,2614.0,2613.9,0.76502]
[1751996210725,0.76502,2614.0,2613.9,2.43002]
[1751996211525,0.76502,2614.0,2613.9,1.665]
[1751996211923,0.76502,2614.0,2613.9,2.43003]
[1751996212327,0.76502,2614.0,2613.9,1.665]
[1751996213820,1.43672,2614.0,2613.9,0.638]
[1751996214026,1.43672,2614.0,2613.6,3.2078]
[1751996214027,0.76512,2613.6,2613.5,2.66231942]
[1751996214228,0.76515,2613.5,2613.4,1.4431]
[1751996214422,1.43685,2613.5,2613.4,2.0811]
[1751996215330,1.43685,2613.5,2613.4,1.4431]
[1751996215331,0.76515,2613.5,2613.4,1.4431]
[1751996215525,0.76515,2613.5,2613.4,3.0799]
[1751996215727,0.76515,2613.5,2613.4,3.84508]
[1751996216228,0.76515,2613.5,2613.4,5.50859942]
[1751996217130,0.76515,2613.5,2613.4,6.17751942]
[1751996217724,0.76515,2613.5,2613.4,6.94269942]
[1751996219128,0.76515,2613.5,2613.4,5.27918]
[1751996222728,0.76515,2613.5,2613.4,6.95017347]
[1751996223536,0.76514,2613.6,2613.5,0.7651]
[1751996223727,0.76514,2613.6,2613.5,1.4031]
[1751996224029,0.76514,2613.6,2613.5,2.4019]
[1751996224433,0.76514,2613.6,2613.5,1.6368]
[1751996224629,0.76515,2613.5,2613.4,3.11409347]
[1751996224930,0.76518,2613.4,2613.3,1.67099347]
[1751996225332,1.43688,2613.4,2613.3,2.30899347]
[1751996225531,1.43688,2613.4,2613.3,1.67099347]
[1751996225731,1.43688,2613.4,2613.3,2.30899347]
[1751996226132,1.43688,2613.4,2613.3,1.67099347]
[1751996226328,1.43688,2613.4,2613.3,2.30899347]
[1751996226533,9.5859,2613.4,2613.1,2.20961565]
[1751996226833,0.76535,2612.8,2612.7,3.30465886]
[1751996227029,1.43705,2612.8,2612.7,3.30465886]
[1751996227236,1.43705,2612.8,2612.7,3.94265886]
[1751996227428,1.43705,2612.8,2612.7,0.638]
[1751996227633,1.43705,2612.8,2612.6,3.30465886]
[1751996227634,0.76538,2612.7,2612.6,3.30465886]
[1751996227831,0.76541,2612.6,2612.5,6.51245886]
[1751996228225,0.76541,2612.6,2612.5,8.14925886]
[1751996228424,0.76541,2612.6,2612.5,4.8446]
[1751996228830,45.92099,2613.1,2612.5,4.8446]
[1751996229136,0.76539,2612.7,2612.6,1.76419]
[1751996229333,0.76539,2612.7,2612.6,2.40219]
[1751996229530,40.8,2613.1,2612.7,1.91346]
[1751996229736,3.2078,2613.4,2613.3,0.76521]
[1751996229936,0.76522,2613.3,2613.2,0.76521]
[1751996230130,0.76524,2613.2,2613.1,0.76525]
[1751996230332,0.76524,2613.2,2613.1,1.6368]
[1751996230532,1.43694,2613.2,2613.1,1.6368]
[1751996230733,1.43694,2613.2,2613.1,0.638]
[1751996232437,1.43694,2613.2,2613.1,1.40326]
[1751996232637,0.76524,2613.2,2613.1,2.40206]
[1751996232838,1.43694,2613.2,2613.1,1.6368]
[1751996233039,1.43694,2613.2,2613.1,0.638]
[1751996233233,0.76524,2613.2,2613.1,0.638]
[1751996233435,0.76524,2613.2,2612.8,3.2078]
[1751996233436,2.58482,2613.2,2612.8,3.2078]
[1751996233740,0.76532,2612.9,2612.8,26.973]
[1751996233934,0.76535,2612.8,2612.7,1.5047]
[1751996234136,1.43705,2612.8,2612.7,0.638]
[1751996237743,0.76544,2612.5,2612.4,2.18105]
[1751996238043,0.7655,2612.4,2612.3,27.73648]
[1751996238442,0.76546,2612.5,2612.4,0.76545]
[1751996238638,0.76547,2612.4,2612.3,27.73648]
[1751996239043,0.76547,2612.4,2612.3,1.6368]
[1751996239343,0.76547,2612.4,2612.3,2.4023]
[1751996240242,0.76547,2612.4,2612.3,1.4042]
[1751996240442,0.76547,2612.4,2612.3,2.403]
[1751996241044,0.76543,2612.6,2612.5,0.76541]
[1751996241239,0.76543,2612.6,2612.5,1.40411]
[1751996241448,2.67683,2612.6,2612.5,0.76544]
[1751996241647,2.67683,2612.6,2612.5,1.40414]
[1751996242045,1.99363,2612.6,2612.5,1.40414]
[1751996242246,2.67683,2612.6,2612.5,1.40414]
[1751996242645,2.67683,2612.6,2612.5,0.6387]
[1751996243448,0.76547,2612.4,2612.3,1.96029]
[1751996243645,0.76547,2612.4,2612.3,2.59899]
[1751996243841,0.76546,2612.5,2612.4,0.76544]
[1751996244251,0.76547,2612.4,2612.3,2.59897]
[1751996244552,0.76547,2612.4,2612.3,1.8335]
[1751996244943,0.76547,2612.4,2612.3,2.599]
[1751996246254,0.76547,2612.4,2612.3,1.8335]
[1751996246655,0.76556,2612.2,2612.1,0.76555]
[1751996246954,0.76553,2612.3,2612.2,0.76553]
[1751996247156,1.44873,2612.3,2612.2,1.40423]
[1751996247356,0.76553,2612.3,2612.2,1.40423]
[1751996247551,0.76553,2612.3,2612.2,2.43923]
[1751996247747,1.44873,2612.3,2612.2,2.43923]
[1751996248861,5.83379513,2613.0,2612.2,7.50749513]
[1751996249158,3.12467,2613.1,2612.8,0.76534]
[1751996249458,0.76536,2612.8,2612.7,0.76537]
[1751996249655,0.76536,2612.8,2612.7,1.40407]
[1751996249857,0.6832,2612.8,2612.7,1.40407]
[1751996250257,0.76534,2612.9,2612.8,0.76535]
[1751996250459,0.76534,2612.9,2612.8,1.40405]
[1751996250650,4.66780513,2613.0,2612.9,0.76532]
[1751996250855,1.97678,2613.1,2613.0,0.76529]
[1751996251058,1.97678,2613.1,2613.0,1.40399]
[1751996251259,5.12061,2613.6,2613.0,1.6737]
[1751996251453,1.1602,2613.5,2613.1,1.91317]
[1751996251663,3.2078,2613.6,2613.5,0.76515]
[1751996252065,3.891,2613.6,2613.1,1.1774]
[1751996252369,3.891,2613.6,2613.0,0.76528]
[1751996252370,0.76526,2613.1,2613.0,0.76528]
[1751996252669,0.76526,2613.1,2613.0,1.40398]
[1751996253464,0.7653,2613.0,2612.9,0.7653]
[1751996253868,0.7653,2613.0,2612.9,1.404]
[1751996254166,0.7653,2613.0,2612.9,0.6387]
[1751996254562,0.76532,2612.9,2612.8,1.1821]